bitfinex/quotes_BTCUSD_20250928
["timestamp","ask_amount","ask_price","bid_price","bid_amount"]
[1759070002747,0.52185124,109980.0,109970.0,0.1]
[1759070002965,8.62381453,109980.0,109970.0,0.10195]
[1759070003174,8.64794453,109980.0,109970.0,0.10195]
[1759070003418,8.67531678,109980.0,109970.0,0.00195]
[1759070003627,8.68958677,109980.0,109970.0,0.00195]
[1759070003887,8.68958677,109980.0,109970.0,0.10195]
[1759070004090,8.68958677,109980.0,109970.0,0.00553393]
[1759070004331,8.68958677,109980.0,109970.0,0.00241393]
[1759070005376,0.52186778,109970.0,109960.0,0.05898393]
[1759070005634,0.52186778,109970.0,109960.0,0.05320437]
[1759070005635,8.62179107,109970.0,109960.0,0.05320437]
[1759070005848,8.64592107,109970.0,109960.0,0.05515437]
[1759070006284,8.67329449,109970.0,109960.0,0.05515437]
[1759070006937,8.67329449,109970.0,109960.0,0.05915437]
[1759070007366,8.67329449,109970.0,109960.0,0.05515437]
[1759070007575,8.67329449,109970.0,109960.0,0.05715437]
[1759070007999,8.67329449,109970.0,109960.0,0.06515437]
[1759070008663,8.67329449,109970.0,109960.0,0.16515437]
[1759070009074,8.687565,109970.0,109960.0,0.16515437]
[1759070009768,8.687565,109970.0,109960.0,0.06515437]
[1759070009980,8.402085,109970.0,109960.0,0.15515437]
[1759070010196,8.687565,109970.0,109960.0,0.15515437]
[1759070010423,8.67329449,109970.0,109960.0,0.15715437]
[1759070010642,8.38781449,109970.0,109960.0,0.16215437]
[1759070010875,8.67329449,109970.0,109960.0,0.16215437]
[1759070011110,8.67329449,109970.0,109960.0,0.15715437]
[1759070011582,8.67329449,109970.0,109960.0,0.16215437]
[1759070012968,8.6875649,109970.0,109960.0,0.16215437]
[1759070013170,8.6875649,109970.0,109960.0,0.06215437]
[1759070013414,8.6875649,109970.0,109960.0,0.16215437]
[1759070013634,8.4020849,109970.0,109960.0,0.16215437]
[1759070013811,8.6875649,109970.0,109960.0,0.16215437]
[1759070014221,8.6875649,109970.0,109960.0,0.06215437]
[1759070014429,8.6875649,109970.0,109960.0,0.16215437]
[1759070015842,8.4020849,109970.0,109960.0,0.16215437]
[1759070016019,8.6875249,109970.0,109960.0,0.16215437]
[1759070019176,8.6875249,109970.0,109960.0,0.06215437]
[1759070019364,8.22021712,109970.0,109960.0,0.16215437]
[1759070019561,8.50565712,109970.0,109960.0,0.16215437]
[1759070019994,8.6875249,109970.0,109960.0,0.16215437]
[1759070022126,8.22021712,109970.0,109960.0,0.16215437]
[1759070022331,8.50565712,109970.0,109960.0,0.16215437]
[1759070023949,8.16565712,109970.0,109960.0,0.16215437]
[1759070025702,8.16565712,109970.0,109960.0,0.1803428]
[1759070025823,8.50565712,109970.0,109960.0,0.1803428]
[1759070026677,8.22021712,109970.0,109960.0,0.1803428]
[1759070026871,8.50565712,109970.0,109960.0,0.1803428]
[1759070028947,8.95445712,109970.0,109960.0,0.1803428]
[1759070030888,8.66901712,109970.0,109960.0,0.1803428]
[1759070031096,8.95445712,109970.0,109960.0,0.1803428]
[1759070032649,8.94018671,109970.0,109960.0,0.1803428]
[1759070034176,8.94225671,109970.0,109960.0,0.1803428]
[1759070034714,8.65474671,109970.0,109960.0,0.1803428]
[1759070034935,8.91277329,109970.0,109960.0,0.16215437]
[1759070035560,8.92911343,109970.0,109960.0,0.16215437]
[1759070036155,8.92911343,109970.0,109960.0,0.15903437]
[1759070036486,8.93207343,109970.0,109960.0,0.15903437]
[1759070039241,8.74211608,109970.0,109960.0,0.15903437]
[1759070041139,8.74211608,109970.0,109960.0,0.15708437]
[1759070041557,8.72784594,109970.0,109960.0,0.15708437]
[1759070043339,8.90971372,109970.0,109960.0,0.15708437]
[1759070044485,8.9239839,109970.0,109960.0,0.15708437]
[1759070046617,8.74211612,109970.0,109960.0,0.15708437]
[1759070047887,8.72784594,109970.0,109960.0,0.15708437]
[1759070048566,8.44244594,109970.0,109960.0,0.15708437]
[1759070048791,8.44244594,109970.0,109960.0,0.15919437]
[1759070049024,8.72488594,109970.0,109960.0,0.15919437]
[1759070050271,8.43948594,109970.0,109960.0,0.15919437]
[1759070050472,8.72488594,109970.0,109960.0,0.15919437]
[1759070050673,8.72783594,109970.0,109960.0,0.15919437]
[1759070050843,8.74210612,109970.0,109960.0,0.15919437]
[1759070051501,8.56332657,109970.0,109960.0,0.15919437]
[1759070054593,8.74519435,109970.0,109960.0,0.15919437]
[1759070055267,8.56332657,109970.0,109960.0,0.15919437]
[1759070058105,8.74519435,109970.0,109960.0,0.15919437]
[1759070058307,8.74519435,109970.0,109960.0,0.15708437]
[1759070060367,8.74519435,109970.0,109960.0,0.05708437]
[1759070060584,8.74519435,109970.0,109960.0,0.15708437]
[1759070064791,8.54368062,109970.0,109960.0,0.15708437]
[1759070064994,9.29948796,109970.0,109960.0,0.15708437]
[1759070066409,9.28521778,109970.0,109960.0,0.15708437]
[1759070068215,9.28521778,109970.0,109960.0,0.05708437]
[1759070068410,9.28521778,109970.0,109960.0,0.15708437]
[1759070069603,9.2994879,109970.0,109960.0,0.15708437]
[1759070070000,9.2994879,109970.0,109960.0,0.05708437]
[1759070070222,9.2994879,109970.0,109960.0,0.15708437]
[1759070074245,9.2994879,109970.0,109960.0,0.05708437]
[1759070074450,9.2994879,109970.0,109960.0,0.15708437]
[1759070075290,9.11762012,109970.0,109960.0,0.15915437]
[1759070078538,9.10335,109970.0,109960.0,0.15915437]
[1759070081472,9.10335,109970.0,109960.0,0.15708437]
[1759070081668,9.1176201,109970.0,109960.0,0.15708437]
[1759070082188,9.29948788,109970.0,109960.0,0.15708437]
[1759070084460,8.95948788,109970.0,109960.0,0.15708437]
[1759070085248,8.95948788,109970.0,109960.0,0.05708437]
[1759070085464,9.29948788,109970.0,109960.0,0.15708437]
[1759070087925,9.29936788,109970.0,109960.0,0.05708437]
[1759070088141,9.29936788,109970.0,109960.0,0.15708437]
[1759070093018,9.29932788,109970.0,109960.0,0.15708437]
[1759070095383,9.01408788,109970.0,109960.0,0.15708437]
[1759070095547,9.29932788,109970.0,109960.0,0.15708437]
[1759070099180,9.29932788,109970.0,109960.0,0.05708437]
[1759070099426,9.29932788,109970.0,109960.0,0.15708437]
[1759070101048,9.29928788,109970.0,109960.0,0.15708437]
[1759070101245,9.0852637,109970.0,109960.0,0.15708437]
[1759070102012,8.8000637,109970.0,109960.0,0.15708437]
[1759070102221,9.0852637,109970.0,109960.0,0.15708437]
[1759070103482,9.10207042,109970.0,109960.0,0.15708437]
[1759070103722,9.12541042,109970.0,109960.0,0.15708437]
[1759070104341,8.84021042,109970.0,109960.0,0.15708437]
[1759070104563,9.12541042,109970.0,109960.0,0.15708437]
[1759070105966,9.35198245,109970.0,109960.0,0.15708437]
[1759070107581,8.88491467,109970.0,109960.0,0.15708437]
[1759070107840,9.17011467,109970.0,109960.0,0.15920437]
[1759070108833,8.88491467,109970.0,109960.0,0.15920437]
[1759070109179,9.17011467,109970.0,109960.0,0.15920437]
[1759070110899,8.88491467,109970.0,109960.0,0.15920437]
[1759070111100,9.17011467,109970.0,109960.0,0.15920437]
[1759070111524,9.16716467,109970.0,109960.0,0.15920437]
[1759070112264,9.17031467,109970.0,109960.0,0.15920437]
[1759070113141,8.88515467,109970.0,109960.0,0.15920437]
[1759070113352,9.17031467,109970.0,109960.0,0.15920437]
[1759070115686,9.17031467,109970.0,109960.0,0.15708437]
[1759070115899,9.17031467,109970.0,109960.0,0.15920437]
[1759070116913,9.17031467,109970.0,109960.0,0.15708437]
[1759070118185,9.19768592,109970.0,109960.0,0.15708437]
[1759070118391,9.18341582,109970.0,109960.0,0.15708437]
[1759070118811,9.3652836,109970.0,109960.0,0.15708437]
[1759070121511,9.37955372,109970.0,109960.0,0.15708437]
[1759070122542,9.37955372,109970.0,109960.0,0.15708437]
[1759070130335,9.3652836,109970.0,109960.0,0.15708437]
[1759070131752,9.1637473,109970.0,109960.0,0.15708437]
[1759070131931,9.32853575,109970.0,109960.0,0.05708437]
[1759070132137,9.32853575,109970.0,109960.0,0.15708437]
[1759070133368,9.05764587,109970.0,109960.0,0.15708437]
[1759070133612,9.34272587,109970.0,109960.0,0.15708437]
[1759070137005,9.00272587,109970.0,109960.0,0.15708437]
[1759070138938,9.34272587,109970.0,109960.0,0.15708437]
[1759070141424,9.32845575,109970.0,109960.0,0.15708437]
[1759070142458,8.83950903,109970.0,109960.0,0.05708437]
[1759070142816,8.83950903,109970.0,109960.0,0.15708437]
[1759070143083,8.83950903,109970.0,109960.0,0.18183437]
[1759070144221,8.85377927,109970.0,109960.0,0.18183437]
[1759070144625,8.85377927,109970.0,109960.0,0.08183437]
[1759070144833,8.85377927,109970.0,109960.0,0.18183437]
[1759070147664,8.83950903,109970.0,109960.0,0.18183437]
[1759070147876,8.83950903,109970.0,109960.0,0.08183437]
[1759070148287,8.83950903,109970.0,109960.0,0.18183437]
[1759070149136,8.83950903,109970.0,109960.0,0.08183437]
[1759070149342,8.83950903,109970.0,109960.0,0.18183437]
[1759070150724,8.85377937,109970.0,109960.0,0.18183437]
[1759070153066,8.85377937,109970.0,109960.0,0.08183437]
[1759070153273,8.85377937,109970.0,109960.0,0.18183437]
[1759070155241,8.64135034,109970.0,109960.0,0.18183437]
[1759070155510,8.85059075,109970.0,109960.0,0.08183437]
[1759070155686,8.85059075,109970.0,109960.0,0.18183437]
[1759070156694,8.85059075,109970.0,109960.0,0.08183437]
[1759070156888,8.85059075,109970.0,109960.0,0.18183437]
[1759070158192,8.85059075,109970.0,109960.0,0.08183437]
[1759070158402,8.85059075,109970.0,109960.0,0.18183437]
[1759070160917,8.56551075,109970.0,109960.0,0.18183437]
[1759070161130,8.85051075,109970.0,109960.0,0.18183437]
[1759070161330,8.85051075,109970.0,109960.0,0.08183437]
[1759070161704,8.85051075,109970.0,109960.0,0.18183437]
[1759070165242,8.85051075,109970.0,109960.0,0.08183437]
[1759070165555,8.85051075,109970.0,109960.0,0.18183437]
[1759070166533,8.85201075,109970.0,109960.0,0.18183437]
[1759070169114,8.56701075,109970.0,109960.0,0.08183437]
[1759070169361,8.85197075,109970.0,109960.0,0.18183437]
[1759070169806,8.85193075,109970.0,109960.0,0.18183437]
[1759070170267,8.56701075,109970.0,109960.0,0.18183437]
[1759070170465,8.85043075,109970.0,109960.0,0.18183437]
[1759070173856,8.83616041,109970.0,109960.0,0.18183437]
[1759070174900,8.83616041,109970.0,109960.0,0.08183437]
[1759070175120,8.83616041,109970.0,109960.0,0.18183437]
[1759070176627,8.83616041,109970.0,109960.0,0.08183437]
[1759070176982,8.85043085,109970.0,109960.0,0.08183437]
[1759070178051,8.85043085,109970.0,109960.0,0.18183437]
[1759070178261,8.83616041,109970.0,109960.0,0.18183437]
[1759070178731,8.83612041,109970.0,109960.0,0.18392437]
[1759070179364,8.83612041,109970.0,109960.0,0.18696437]
[1759070181472,8.54924041,109970.0,109960.0,0.18696437]
[1759070181684,8.84839096,109970.0,109960.0,0.18696437]
[1759070185989,8.85039096,109970.0,109960.0,0.18392437]
[1759070186236,8.85039096,109970.0,109960.0,0.18183437]
[1759070189219,8.85039096,109970.0,109960.0,0.08183437]
[1759070192269,8.85039096,109970.0,109960.0,0.18183437]
[1759070192850,8.85039096,109970.0,109960.0,0.08183437]
[1759070195708,8.56551096,109970.0,109960.0,0.08183437]
[1759070195937,8.85035096,109970.0,109960.0,0.08183437]
[1759070197541,8.85035096,109970.0,109960.0,0.18183437]
[1759070199175,8.85035096,109970.0,109960.0,0.08183437]
[1759070203529,8.85035096,109970.0,109960.0,0.18183437]
[1759070203729,8.56551096,109970.0,109960.0,0.18183437]
[1759070203929,8.85035096,109970.0,109960.0,0.18183437]
[1759070207600,8.56551096,109970.0,109960.0,0.18183437]
[1759070208055,8.56551096,109970.0,109960.0,0.18697437]
[1759070208245,8.85035096,109970.0,109960.0,0.18389437]
[1759070208521,8.85035096,109970.0,109960.0,0.08389437]
[1759070208674,8.85035096,109970.0,109960.0,0.18389437]
[1759070213293,8.85035096,109970.0,109960.0,0.08389437]
[1759070213731,8.63581611,109970.0,109960.0,0.08389437]
[1759070214164,8.63581611,109970.0,109960.0,0.18389437]
[1759070214404,8.63581611,109970.0,109960.0,0.08389437]
[1759070217532,8.63581611,109970.0,109960.0,0.18389437]
[1759070218594,8.63581611,109970.0,109960.0,0.08389437]
[1759070218799,8.63581611,109970.0,109960.0,0.18389437]
[1759070220726,8.63577611,109970.0,109960.0,0.18701437]
[1759070221143,8.63577611,109970.0,109960.0,0.08701437]
[1759070221354,8.63577611,109970.0,109960.0,0.18389437]
[1759070223804,8.63577611,109970.0,109960.0,0.08389437]
[1759070224003,8.63577611,109970.0,109960.0,0.18389437]
[1759070224250,8.63577611,109970.0,109960.0,0.08389437]
[1759070224443,8.63577611,109970.0,109960.0,0.18389437]
[1759070226738,8.63577611,109970.0,109960.0,0.08389437]
[1759070227214,8.63577611,109970.0,109960.0,0.18389437]
[1759070227888,8.63577611,109970.0,109960.0,0.08389437]
[1759070228111,8.63577611,109970.0,109960.0,0.18389437]
[1759070229506,8.63577611,109970.0,109960.0,0.08389437]
[1759070229725,8.63577611,109970.0,109960.0,0.18389437]
[1759070231379,8.63336631,109970.0,109960.0,0.18389437]
[1759070231660,8.33429576,109970.0,109960.0,0.18389437]
[1759070231933,8.61909576,109970.0,109960.0,0.18389437]
[1759070234524,8.63336629,109970.0,109960.0,0.18389437]
[1759070234726,8.63336629,109970.0,109960.0,0.08389437]
[1759070234939,8.63336629,109970.0,109960.0,0.18389437]
[1759070235149,8.34856629,109970.0,109960.0,0.18389437]
[1759070235359,8.63136629,109970.0,109960.0,0.18713437]
[1759070236148,8.34656629,109970.0,109960.0,0.18713437]
[1759070236402,8.63132629,109970.0,109960.0,0.18713437]
[1759070237204,8.68415446,109970.0,109960.0,0.03183437]
[1759070237638,8.66988393,109970.0,109960.0,0.03183437]
[1759070238279,8.66988393,109970.0,109960.0,0.02483437]
[1759070238730,8.66988393,109970.0,109960.0,0.02783437]
[1759070239167,8.66988393,109970.0,109960.0,0.02483437]
[1759070239435,8.67088393,109970.0,109960.0,0.02483437]
[1759070240795,8.40039619,109970.0,109960.0,0.02483437]
[1759070241015,8.77999619,109970.0,109960.0,0.02483437]
[1759070241635,8.5877048,109970.0,109960.0,0.02483437]
[1759070241851,8.4929048,109970.0,109960.0,0.02483437]
[1759070242066,8.5877048,109970.0,109960.0,0.02483437]
[1759070242725,8.56373058,109970.0,109960.0,0.02483437]
[1759070247406,8.18413058,109970.0,109960.0,0.02483437]
[1759070247619,8.15527663,109970.0,109960.0,0.03009437]
[1759070247821,8.44007663,109970.0,109960.0,0.03009437]
[1759070248035,8.14100437,109970.0,109960.0,0.08009437]
[1759070248249,8.25886154,109970.0,109960.0,0.08009437]
[1759070248496,8.25898154,109970.0,109960.0,0.08009437]
[1759070248715,7.97406154,109970.0,109960.0,0.08009437]
[1759070248945,8.25898154,109970.0,109960.0,0.08009437]
[1759070250577,7.79219376,109970.0,109960.0,0.08009437]
[1759070250815,8.07711376,109970.0,109960.0,0.18009437]
[1759070251025,8.2732527,109970.0,109960.0,0.18009437]
[1759070251442,7.9883327,109970.0,109960.0,0.18009437]
[1759070251650,8.2732127,109970.0,109960.0,0.18009437]
[1759070252097,8.06397229,109970.0,109960.0,0.18009437]
[1759070252283,8.24584007,109970.0,109960.0,0.18009437]
[1759070253294,8.24484007,109970.0,109960.0,0.18009437]
[1759070253594,8.24484007,109970.0,109960.0,0.18309437]
[1759070254285,7.95996007,109970.0,109960.0,0.18309437]
[1759070254484,8.24480007,109970.0,109960.0,0.18309437]
[1759070261571,8.23052891,109970.0,109960.0,0.18309437]
[1759070264262,8.24479962,109970.0,109960.0,0.18309437]
[1759070267670,8.24475962,109970.0,109960.0,0.18309437]
[1759070267870,8.23048891,109970.0,109960.0,0.18309437]
[1759070269252,8.04862113,109970.0,109960.0,0.18309437]
[1759070269531,8.23048891,109970.0,109960.0,0.18309437]
[1759070270650,8.24475944,109970.0,109960.0,0.18309437]
[1759070273520,8.24673944,109970.0,109960.0,0.18309437]
[1759070273893,8.0301966,109970.0,109960.0,0.18309437]
[1759070278744,7.84832882,109970.0,109960.0,0.18309437]
[1759070279197,8.0301966,109970.0,109960.0,0.18309437]
[1759070279401,8.0301966,109970.0,109960.0,0.17987437]
[1759070279746,7.56154882,109970.0,109960.0,0.18296437]
[1759070279954,7.84630882,109970.0,109960.0,0.18296437]
[1759070281141,7.84630882,109970.0,109960.0,0.15367237]
[1759070281345,7.84630882,109970.0,109960.0,0.1718608]
[1759070281549,7.87056882,109970.0,109960.0,0.1718608]
[1759070282459,7.87056882,109970.0,109960.0,0.15367237]
[1759070282666,7.87270882,109970.0,109960.0,0.15367237]
[1759070283561,7.87270882,109970.0,109960.0,0.15058237]
[1759070286153,7.87270882,109970.0,109960.0,0.1687708]
[1759070288741,7.87270882,109970.0,109960.0,0.14739676]
[1759070290034,7.87270882,109970.0,109960.0,0.16558519]
[1759070290710,7.85843829,109970.0,109960.0,0.14739676]
[1759070291604,7.57367829,109970.0,109960.0,0.14739676]
[1759070291897,7.85843829,109970.0,109960.0,0.15040676]
[1759070292309,7.85843829,109970.0,109960.0,0.14739676]
[1759070293536,7.58794875,109970.0,109960.0,0.14739676]
[1759070293775,7.58580875,109970.0,109960.0,0.16859519]
[1759070293984,7.87056875,109970.0,109960.0,0.16859519]
[1759070294177,7.58580875,109970.0,109960.0,0.16859519]
[1759070294303,7.87056875,109970.0,109960.0,0.16859519]
[1759070294743,7.87056875,109970.0,109960.0,0.19596626]
[1759070294957,7.58580875,109970.0,109960.0,0.17777783]
[1759070295161,7.87056875,109970.0,109960.0,0.17777783]
[1759070296175,7.87056875,109970.0,109960.0,0.15040676]
[1759070296376,7.87056875,109970.0,109960.0,0.16859519]
[1759070297268,7.87056875,109970.0,109960.0,0.19596627]
[1759070297649,7.87056875,109970.0,109960.0,0.17777784]
[1759070297835,7.58580875,109970.0,109960.0,0.17777784]
[1759070298113,7.87052875,109970.0,109960.0,0.17777784]
[1759070298299,7.87262875,109970.0,109960.0,0.15040676]
[1759070298457,7.87262875,109970.0,109960.0,0.16859519]
[1759070300670,7.87262875,109970.0,109960.0,0.15040676]
[1759070301452,7.85835829,109970.0,109960.0,0.15040676]
[1759070303468,7.85835829,109970.0,109960.0,0.14739676]
[1759070304414,7.87262835,109970.0,109960.0,0.14739676]
[1759070305985,7.87262835,109970.0,109960.0,0.16558519]
[1759070306367,7.87262835,109970.0,109960.0,0.14739676]
[1759070307595,7.58790835,109970.0,109960.0,0.16558519]
[1759070307751,7.87262835,109970.0,109960.0,0.16857519]
[1759070307951,7.58580835,109970.0,109960.0,0.15038676]
[1759070308192,7.87052835,109970.0,109960.0,0.15038676]
[1759070309021,7.58580835,109970.0,109960.0,0.16857519]
[1759070309225,7.87052835,109970.0,109960.0,0.14738676]
[1759070309426,7.87052835,109970.0,109960.0,0.17475628]
[1759070309605,7.87052835,109970.0,109960.0,0.17975628]
[1759070310392,7.85625829,109970.0,109960.0,0.18175628]
[1759070311009,0.36426,109970.0,109960.0,0.18175628]
[1759070311385,0.64898,109970.0,109960.0,0.18175628]
[1759070311598,0.36426,109970.0,109960.0,0.18175628]
[1759070313427,0.37852907,109970.0,109960.0,0.18175628]
[1759070317603,0.36426,109970.0,109960.0,0.18175628]
[1759070321067,0.37852889,109970.0,109960.0,0.18175628]
[1759070327607,0.03852889,109970.0,109960.0,0.18175628]
[1759070329188,0.02426,109970.0,109960.0,0.18175628]
[1759070329595,0.36426,109970.0,109960.0,0.18175628]
[1759070332286,0.37852876,109970.0,109960.0,0.18175628]
[1759070332818,0.38360876,109970.0,109960.0,0.17669628]
[1759070339301,0.36934,109970.0,109960.0,0.17669628]
[1759070342536,0.38360926,109970.0,109960.0,0.17669628]
[1759070344588,8.38360926,109970.0,109960.0,0.17669628]
[1759070347260,8.01934926,109970.0,109960.0,0.03436952]
[1759070347490,8.01934926,109970.0,109960.0,0.14932676]
[1759070347700,8.01934926,109970.0,109960.0,0.17336676]
[1759070349237,8.30454926,109970.0,109960.0,0.17336676]
[1759070349443,8.29028,109970.0,109960.0,0.07336676]
[1759070349624,8.29028,109970.0,109960.0,0.17336676]
[1759070350019,8.63028,109970.0,109960.0,0.17336676]
[1759070350217,8.63028,109970.0,109960.0,0.07336676]
[1759070350450,8.63028,109970.0,109960.0,0.17336676]
[1759070351326,8.81214778,109970.0,109960.0,0.17336676]
[1759070351746,8.52694778,109970.0,109960.0,0.17336676]
[1759070351945,8.63028,109970.0,109960.0,0.17336676]
[1759070352584,8.64455024,109970.0,109960.0,0.17336676]
[1759070352765,8.82641802,109970.0,109960.0,0.07336676]
[1759070352971,8.82641802,109970.0,109960.0,0.17336676]
[1759070354746,8.35935024,109970.0,109960.0,0.17336676]
[1759070354976,8.64463024,109970.0,109960.0,0.17336676]
[1759070355398,8.35935024,109970.0,109960.0,0.17336676]
[1759070355610,8.64159024,109970.0,109960.0,0.17538676]
[1759070355832,8.64159024,109970.0,109960.0,0.17850676]
[1759070356235,8.64159024,109970.0,109960.0,0.17538676]
[1759070357118,8.64159024,109970.0,109960.0,0.17336676]
[1759070358531,8.59339147,109970.0,109960.0,0.17336676]
[1759070359566,8.30811147,109970.0,109960.0,0.17538676]
[1759070359743,8.59343147,109970.0,109960.0,0.19669519]
[1759070359952,8.59343147,109970.0,109960.0,0.17850676]
[1759070359953,8.57916123,109970.0,109960.0,0.17850676]
[1759070360164,8.29384123,109970.0,109960.0,0.17850676]
[1759070360371,8.57912123,109970.0,109960.0,0.17850676]
[1759070362242,8.57924123,109970.0,109960.0,0.17850676]
[1759070366017,8.58122123,109970.0,109960.0,0.17850676]
[1759070366913,8.58122123,109970.0,109960.0,0.17538676]
[1759070367056,8.58122123,109970.0,109960.0,0.17336676]
[1759070369872,8.58274123,109970.0,109960.0,0.17336676]
[1759070371514,8.58122123,109970.0,109960.0,0.17336676]
[1759070373116,8.58106123,109970.0,109960.0,0.17336676]
[1759070376383,8.76292901,109970.0,109960.0,0.17336676]
[1759070376593,8.76444901,109970.0,109960.0,0.17336676]
[1759070378618,8.76444901,109970.0,109960.0,0.07336676]
[1759070378818,8.76444901,109970.0,109960.0,0.17336676]
[1759070379254,8.76444901,109970.0,109960.0,0.07336676]
[1759070379465,8.76444901,109970.0,109960.0,0.17336676]
[1759070381489,8.76444901,109970.0,109960.0,0.07336676]
[1759070381681,8.76444901,109970.0,109960.0,0.17336676]
[1759070383272,8.76444901,109970.0,109960.0,0.07336676]
[1759070383502,8.76444901,109970.0,109960.0,0.17336676]
[1759070383757,8.77871943,109970.0,109960.0,0.17336676]
[1759070384522,8.77871943,109970.0,109960.0,0.07336676]
[1759070386636,8.80609161,109970.0,109960.0,0.07336676]
[1759070387699,8.79182119,109970.0,109960.0,0.07336676]
[1759070390631,8.80609163,109970.0,109960.0,0.07336676]
[1759070397854,8.80609163,109970.0,109960.0,0.07136676]
[1759070398063,8.80609163,109970.0,109960.0,0.06636676]
[1759070398261,8.80609163,109970.0,109960.0,0.06836676]
[1759070398675,8.79182119,109970.0,109960.0,0.02604]
[1759070401174,8.80609182,109970.0,109960.0,0.02604]
[1759070403609,8.52085182,109970.0,109960.0,0.02604]
[1759070403901,8.80601182,109970.0,109960.0,0.02604]
[1759070404644,8.52085182,109970.0,109960.0,0.02404]
[1759070404854,8.80597182,109970.0,109960.0,0.02404]
[1759070405055,8.80597182,109970.0,109960.0,0.02604]
[1759070405389,8.52085182,109970.0,109960.0,0.02604]
[1759070405586,8.80597182,109970.0,109960.0,0.02604]
[1759070407255,8.52085182,109970.0,109960.0,0.02604]
[1759070407428,8.80597182,109970.0,109960.0,0.02604]
[1759070407839,8.80601182,109970.0,109960.0,0.02604]
[1759070408057,8.80449182,109970.0,109960.0,0.02604]
[1759070409737,8.80445182,109970.0,109960.0,0.02604]
[1759070410602,8.80445182,109970.0,109960.0,0.12604]
[1759070411484,8.51933182,109970.0,109960.0,0.12604]
[1759070411703,8.80457182,109970.0,109960.0,0.12604]
[1759070411906,8.80457182,109970.0,109960.0,0.02604]
[1759070412141,8.80457182,109970.0,109960.0,0.12604]
[1759070413055,8.80457182,109970.0,109960.0,0.02604]
[1759070413872,8.51933182,109970.0,109960.0,0.02604]
[1759070414111,8.80449182,109970.0,109960.0,0.12604]
[1759070414948,8.63265309,109970.0,109960.0,0.12604]
[1759070415395,8.63265309,109970.0,109960.0,0.12819]
[1759070415609,8.63265309,109970.0,109960.0,0.13123]
[1759070416008,8.63261309,109970.0,109960.0,0.13123]
[1759070416215,8.63261309,109970.0,109960.0,0.12819]
[1759070416854,8.34551309,109970.0,109960.0,0.12819]
[1759070417070,8.63063309,109970.0,109960.0,0.13123]
[1759070418128,8.63260309,109970.0,109960.0,0.12819]
[1759070418573,8.34748309,109970.0,109960.0,0.12819]
[1759070418786,8.63256309,109970.0,109960.0,0.13123]
[1759070420536,8.34748309,109970.0,109960.0,0.13123]
[1759070420741,8.63256309,109970.0,109960.0,0.13123]
[1759070421146,8.63256309,109970.0,109960.0,0.12819]
[1759070421804,8.63252309,109970.0,109960.0,0.12819]
[1759070423059,8.63244309,109970.0,109960.0,0.12819]
[1759070423834,8.34748309,109970.0,109960.0,0.12819]
[1759070424118,8.63244309,109970.0,109960.0,0.12819]
[1759070424511,8.63244309,109970.0,109960.0,0.02604]
[1759070425730,8.42556618,109970.0,109960.0,0.02604]
[1759070428683,8.41129555,109970.0,109960.0,0.02604]
[1759070429325,8.41129555,109970.0,109960.0,0.12604]
[1759070430265,8.12633555,109970.0,109960.0,0.12604]
[1759070430501,8.41129555,109970.0,109960.0,0.12817]
[1759070431552,8.42556606,109970.0,109960.0,0.12817]
[1759070432399,8.14060606,109970.0,109960.0,0.12817]
[1759070432666,8.42560606,109970.0,109960.0,0.12817]
[1759070434803,8.14060606,109970.0,109960.0,0.12817]
[1759070435069,8.42560606,109970.0,109960.0,0.12817]
[1759070438108,8.42560606,109970.0,109960.0,0.02817]
[1759070438326,8.42560606,109970.0,109960.0,0.12817]
[1759070438870,8.41133555,109970.0,109960.0,0.12817]
[1759070441639,8.42560605,109970.0,109960.0,0.12817]
[1759070445892,8.14060605,109970.0,109960.0,0.12817]
[1759070446093,8.42552605,109970.0,109960.0,0.12817]
[1759070448172,8.14060605,109970.0,109960.0,0.13132]
[1759070448372,8.42548605,109970.0,109960.0,0.12817]
[1759070451689,8.42548605,109970.0,109960.0,0.02817]
[1759070451884,8.42548605,109970.0,109960.0,0.12817]
[1759070453814,8.42548605,109970.0,109960.0,0.02817]
[1759070454013,8.42548605,109970.0,109960.0,0.12817]
[1759070454411,8.42548605,109970.0,109960.0,0.02817]
[1759070454626,8.42548605,109970.0,109960.0,0.12817]
[1759070462468,8.42544605,109970.0,109960.0,0.12817]
[1759070464008,8.41117555,109970.0,109960.0,0.12817]
[1759070466036,8.20927798,109970.0,109960.0,0.12817]
[1759070469694,8.22354847,109970.0,109960.0,0.13117]
[1759070470115,7.75487069,109970.0,109960.0,0.17349676]
[1759070470334,7.7406002,109970.0,109960.0,0.17349676]
[1759070470507,8.0254402,109970.0,109960.0,0.17349676]
[1759070470714,7.99806802,109970.0,109960.0,0.17349676]
[1759070472379,8.62484,109970.0,109960.0,0.17349676]
[1759070473031,8.63911005,109970.0,109960.0,0.17349676]
[1759070474613,8.46077278,109970.0,109960.0,0.17349676]
[1759070475757,8.29911005,109970.0,109960.0,0.17349676]
[1759070476718,8.63911005,109970.0,109960.0,0.17349676]
[1759070477925,8.63915005,109970.0,109960.0,0.17349676]
[1759070479487,8.62488,109970.0,109960.0,0.17349676]
[1759070482057,8.63915012,109970.0,109960.0,0.17349676]
[1759070492804,8.35427012,109970.0,109960.0,0.17349676]
[1759070493011,8.63911012,109970.0,109960.0,0.19168519]
[1759070493343,8.63911012,109970.0,109960.0,0.17349676]
[1759070494654,8.62484,109970.0,109960.0,0.17349676]
[1759070495250,8.6268,109970.0,109960.0,0.17349676]
[1759070497382,8.64107004,109970.0,109960.0,0.17349676]
[1759070497828,8.6268,109970.0,109960.0,0.17349676]
[1759070500290,8.62676,109970.0,109960.0,0.17349676]
[1759070500846,8.64102993,109970.0,109960.0,0.17349676]
[1759070502678,8.64102993,109970.0,109960.0,0.17149676]
[1759070503131,8.64102993,109970.0,109960.0,0.17549676]
[1759070503438,8.41194756,109970.0,109960.0,0.17549676]
[1759070503768,8.64102993,109970.0,109960.0,0.17549676]
[1759070504830,8.64102993,109970.0,109960.0,0.17749676]
[1759070505572,8.64102993,109970.0,109960.0,0.17449676]
[1759070507502,8.62676,109970.0,109960.0,0.17449676]
[1759070510405,8.64103004,109970.0,109960.0,0.17449676]
[1759070513925,8.64103004,109970.0,109960.0,0.17236676]
[1759070518850,8.35623004,109970.0,109960.0,0.17236676]
[1759070519073,8.64103004,109970.0,109960.0,0.17236676]
[1759070520433,8.62676,109970.0,109960.0,0.17236676]
[1759070523149,8.64103018,109970.0,109960.0,0.17236676]
[1759070527940,8.30103018,109970.0,109960.0,0.17236676]
[1759070529981,8.64103018,109970.0,109960.0,0.17236676]
[1759070535604,8.82289796,109970.0,109960.0,0.17236676]
[1759070536156,8.82441796,109970.0,109960.0,0.17236676]
[1759070537307,8.82289796,109970.0,109960.0,0.17236676]
[1759070539123,8.85026931,109970.0,109960.0,0.17236676]
[1759070539967,8.85026931,109970.0,109960.0,0.07236676]
[1759070540182,8.85026931,109970.0,109960.0,0.17236676]
[1759070542167,8.83599913,109970.0,109960.0,0.17236676]
[1759070542798,8.83751913,109970.0,109960.0,0.17236676]
[1759070543402,8.83751913,109970.0,109960.0,0.07236676]